bitfinex/quotes_ETHUSD_20240719
["timestamp","ask_amount","ask_price","bid_price","bid_amount"]
[1721416027107,0.3421283,3524.0,3523.3,0.0771972]
[1721416027282,2.83697,3524.9,3523.4,2.83813]
[1721416027510,5.1782634,3524.8,3523.6,2.83795]
[1721416027840,2.83557,3526.7,3523.6,2.83795]
[1721416027841,2.83608,3526.0,3524.2,2.83745]
[1721416028123,2.83529,3527.0,3523.6,5.83999]
[1721416028124,2.83627,3525.8,3524.3,3.38741]
[1721416028302,2.83529,3527.0,3524.5,2.83722]
[1721416028303,2.83607,3526.0,3524.5,2.83722]
[1721416028475,2.8355,3526.8,3524.3,0.55]
[1721416028677,2.8355,3526.8,3523.6,7.39]
[1721416028678,2.83644,3525.6,3523.6,10.392]
[1721416028918,2.83591,3526.2,3523.7,0.55]
[1721416029085,0.306133,3526.1,3523.7,0.55]
[1721416029273,2.8368,3525.1,3523.7,0.55]
[1721416029519,2.83688,3525.0,3523.7,0.55]
[1721416029823,2.83671,3525.2,3523.7,0.55]
[1721416030024,2.83656,3525.4,3523.9,2.83775]
[1721416030315,0.567297,3525.3,3524.1,2.83753]
[1721416030483,3.0,3525.5,3523.7,2.83786]
[1721416030667,2.391,3525.8,3523.3,0.2191972]
[1721416030872,2.83713,3524.7,3523.3,3.0573872]
[1721416031074,2.83659,3525.4,3523.4,0.55]
[1721416031075,3.0,3525.4,3523.4,0.55]
[1721416031385,3.0,3525.4,3524.1,2.83759]
[1721416031630,0.3,3525.3,3524.0,2.83763]
[1721416031802,0.3,3525.3,3523.9,2.83774]
[1721416032113,0.3,3525.3,3524.1,2.83759]
[1721416032426,0.3,3525.3,3523.6,2.83797]
[1721416032427,2.83672,3525.2,3523.6,2.83797]
[1721416032605,2.83701,3524.9,3523.7,0.55]
[1721416032808,0.567381,3524.8,3523.7,0.55]
[1721416033106,3.404421,3524.8,3523.4,3.38814]
[1721416033425,0.567381,3524.8,3523.4,0.55]
[1721416033620,5.83673,3525.2,3523.4,0.55]
[1721416033780,0.0494428,3524.8,3523.4,0.55]
[1721416034119,0.0494428,3524.8,3523.4,0.37820808]
[1721416034273,0.0494428,3524.8,3523.9,2.83774]
[1721416035119,3.0,3525.2,3523.9,2.83774]
[1721416035120,2.19931954,3525.2,3523.9,2.83774]
[1721416035430,2.8368,3525.1,3523.7,2.83788]
[1721416035583,2.83719,3524.7,3523.4,0.3214634]
[1721416035784,2.83719,3524.7,3523.3,0.67552673]
[1721416035785,2.837,3524.9,3523.3,0.0771972]
[1721416036002,2.83746,3524.3,3523.3,0.0771972]
[1721416036574,2.83758,3524.2,3523.3,0.0771972]
[1721416036808,0.567496,3524.1,3523.3,0.0771972]
[1721416037346,2.83782,3523.9,3523.3,0.0771972]
[1721416037534,2.4765,3524.5,3523.3,0.0771972]
[1721416037734,2.83753,3524.2,3523.3,0.0771972]
[1721416037952,2.8376,3524.1,3523.3,0.0771972]
[1721416038257,2.83736,3524.4,3523.3,0.0771972]
[1721416038413,3.0,3524.3,3523.3,0.0771972]
[1721416038627,2.8376,3524.1,3523.3,0.0771972]
[1721416038858,5.83744,3524.3,3523.3,0.0771972]
[1721416038859,3.0,3524.3,3523.3,0.0771972]
[1721416039016,2.83762,3524.1,3523.3,0.0771972]
[1721416039225,0.567507,3524.0,3523.3,0.0771972]
[1721416039649,2.83752,3524.2,3523.3,0.0771972]
[1721416039862,2.8376,3524.1,3523.3,0.0771972]
[1721416040064,2.8375,3524.3,3523.3,0.0771972]
[1721416040244,2.83745,3524.3,3523.3,0.0771972]
[1721416040442,2.83762,3524.1,3523.3,0.0771972]
[1721416040629,2.4765,3524.5,3523.3,0.0771972]
[1721416040630,2.83784,3523.8,3523.3,0.0771972]
[1721416040830,2.83805,3523.6,3523.3,0.0771972]
[1721416041039,2.83784,3523.8,3523.3,0.0771972]
[1721416041229,2.83805,3523.6,3523.3,0.0771972]
[1721416041866,2.83784,3523.8,3523.3,0.0771972]
[1721416042037,2.83806,3523.6,3523.3,0.0771972]
[1721416042241,3.121452,3524.0,3523.3,0.0771972]
[1721416042445,3.0,3523.9,3523.3,0.0771972]
[1721416043001,0.283762,3524.0,3523.3,0.0771972]
[1721416043178,2.83746,3524.3,3523.3,0.0771972]
[1721416043382,3.458,3524.8,3523.5,0.59832953]
[1721416043670,2.83745,3524.3,3523.6,0.98704335]
[1721416043967,2.83727,3524.6,3523.4,0.59832953]
[1721416044143,2.8376,3524.1,3523.5,0.98701343]
[1721416044354,2.83783,3523.9,3523.3,0.0771972]
[1721416044558,0.28376,3524.0,3523.3,0.0771972]
[1721416044890,0.28376,3524.0,3523.4,2.46761107]
[1721416044891,3.12144,3524.0,3523.4,2.46761107]
[1721416045069,0.28376,3524.0,3523.3,0.67552673]
[1721416045378,2.83801,3523.6,3523.3,0.0771972]
[1721416045880,2.83781,3523.9,3523.3,0.0771972]
[1721416046365,2.83752,3524.2,3523.3,0.0771972]
[1721416046567,3.0,3524.1,3523.3,0.0771972]
[1721416046799,0.08375,3524.0,3523.3,0.0771972]
[1721416047000,5.33587951,3524.2,3523.3,0.0771972]
[1721416047323,2.4765,3524.5,3523.3,2.9153872]
[1721416047465,2.83698,3524.9,3523.4,3.82515367]
[1721416047659,2.83698,3524.9,3523.5,4.31835057]
[1721416047867,0.567379,3524.8,3523.6,5.36187756]
[1721416048091,2.4264,3525.2,3523.9,2.29926538]
[1721416048286,0.3,3525.3,3524.0,2.52376454]
[1721416048489,2.83623,3525.8,3524.1,0.98667054]
[1721416048691,2.4264,3526.0,3524.6,2.83714]
[1721416048692,1.57627674,3526.0,3524.6,2.83714]
[1721416048920,2.83585,3526.3,3524.8,2.83698]
[1721416049082,2.83585,3526.3,3524.9,3.82339575]
[1721416049415,2.83591,3526.2,3524.8,2.83701]
[1721416049563,2.8362,3525.9,3524.5,0.59832953]
[1721416049769,2.8362,3525.9,3524.6,0.98646018]
[1721416049965,3.403178,3526.1,3524.7,0.98642251]
[1721416049966,0.567168,3526.1,3524.7,0.98642251]
[1721416050166,0.567168,3526.1,3524.8,0.98641517]
[1721416050365,2.83564,3526.6,3525.2,2.83671]
[1721416050809,2.83568,3526.5,3525.0,2.83687]
[1721416051189,2.83576,3526.4,3525.0,2.83687]
[1721416052215,2.83563,3526.6,3524.5,2.385]
[1721416052390,3.458,3526.2,3523.9,0.59832953]
[1721416052593,2.83648,3525.5,3523.8,12.26]
[1721416052841,2.83632,3525.7,3523.9,2.83774]
[1721416053045,3.583632,3525.6,3524.0,10.22763]
[1721416053226,2.83656,3525.4,3524.0,7.39]
[1721416053428,2.83656,3525.4,3523.7,2.385]
[1721416053594,3.583632,3525.6,3523.8,0.2842]
[1721416053951,3.583632,3525.6,3524.5,2.83726]
[1721416053952,0.583632,3525.6,3524.5,2.83726]
[1721416054236,3.0,3525.9,3524.5,2.83726]
[1721416054545,0.283559,3526.5,3524.7,2.83709]
[1721416054546,3.0,3526.4,3524.7,2.83709]
[1721416054751,0.283559,3526.5,3525.1,2.83677]
[1721416054752,3.119259,3526.5,3525.1,2.83677]
[1721416055042,0.283559,3526.5,3525.2,2.83669]
[1721416055339,2.83544,3526.8,3525.2,2.83669]
[1721416055340,2.26902574,3526.6,3525.2,2.83669]
[1721416055509,2.83544,3526.8,3525.2,2.83669]
[1721416055939,2.83565,3526.6,3525.2,2.83669]
[1721416056097,2.83551,3526.7,3525.2,2.83669]
[1721416056443,3.0,3526.6,3525.3,2.83663]
[1721416057019,5.83559,3526.6,3525.3,2.83663]
[1721416057225,5.83559,3526.6,3525.1,2.83679]
[1721416057439,5.83559,3526.6,3524.8,2.83701]
[1721416057440,2.83588,3526.3,3524.8,2.83701]
[1721416057651,0.867102,3526.5,3525.0,2.83682]
[1721416057652,3.702822,3526.5,3525.0,2.83682]
[1721416057801,3.702822,3526.5,3525.1,2.83679]
[1721416057802,2.83572,3526.5,3525.1,2.83679]
[1721416058002,3.0,3526.6,3525.1,2.83679]
[1721416058309,3.0,3526.6,3525.3,2.83661]
[1721416058512,2.83591,3526.2,3524.8,2.83702]
[1721416058720,0.567167,3526.1,3524.8,2.83702]
[1721416059315,0.567167,3526.1,3525.0,2.83687]
[1721416059533,0.567167,3526.1,3525.0,2.8368]
[1721416059733,3.0,3526.6,3525.1,2.83679]
[1721416060001,2.83575,3526.4,3525.1,2.83679]
[1721416060738,3.0,3526.6,3525.4,2.83653]
[1721416061046,3.0,3526.7,3525.4,2.83653]
[1721416061201,5.26159,3527.1,3525.7,2.83625]
[1721416061398,0.526166,3527.0,3525.7,2.83625]
[1721416062123,4.93763274,3527.1,3525.7,2.83625]
[1721416062336,2.83559,3526.6,3525.1,7.39]
[1721416062543,2.8353,3527.0,3525.1,7.39]
[1721416062743,3.49377427,3526.9,3525.5,2.83641]
[1721416062905,3.49377427,3526.9,3525.7,2.83631]
[1721416063100,0.49377427,3526.9,3525.7,2.83631]
[1721416063350,0.49377427,3526.9,3525.8,2.83621]
[1721416064049,0.49377427,3526.9,3525.6,2.83634]
[1721416064207,2.83584,3526.3,3525.1,7.39]
[1721416064413,0.5596217,3526.8,3525.3,2.83662]
[1721416064414,3.3950817,3526.8,3525.3,2.83662]
[1721416064670,3.3950817,3526.8,3525.6,2.83639]
[1721416064671,0.5596217,3526.8,3525.6,2.83639]
[1721416064821,0.5596217,3526.8,3525.7,2.83626]
[1721416066677,0.5596217,3526.8,3525.6,2.83639]
[1721416066962,0.63949717,3526.7,3525.7,2.83629]
[1721416067259,0.5596217,3526.8,3525.7,2.83629]
[1721416067919,0.5596217,3526.8,3525.9,2.83615]
[1721416068116,0.5596217,3526.8,3526.1,2.83593]
[1721416068471,0.5596217,3526.8,3525.9,2.83608]
[1721416068673,0.5596217,3526.8,3525.2,10.22671]
[1721416068674,0.35596217,3526.7,3525.8,2.83623]
[1721416068970,2.50583891,3527.2,3526.0,2.83607]
[1721416069122,2.83488,3527.5,3526.0,2.83607]
[1721416069316,2.83488,3527.5,3526.1,2.83592]
[1721416069630,6.29274,3527.7,3526.2,2.8359]
[1721416069835,2.83486,3527.5,3526.2,2.8359]
[1721416070032,0.91276,3527.4,3526.2,2.8359]
[1721416070734,2.83506,3527.3,3525.6,2.83634]
[1721416071053,0.91276,3527.4,3525.6,2.83634]
[1721416071054,2.83529,3527.0,3525.6,2.83634]
[1721416071221,2.83529,3527.0,3525.4,2.83652]
[1721416071222,0.86704,3526.9,3525.5,2.83642]
[1721416071624,0.86704,3526.9,3525.6,2.83638]
[1721416072432,0.86704,3526.9,3525.8,2.8362]
[1721416072631,0.86704,3526.9,3526.1,2.83597]
[1721416072833,3.0,3527.2,3526.1,2.83597]
[1721416073173,3.0,3527.3,3526.1,2.83597]
[1721416073378,0.91276,3527.4,3526.1,2.83597]
[1721416073979,0.91276,3527.4,3525.9,2.83615]
[1721416073980,3.74771,3527.4,3525.9,2.83615]
[1721416074263,3.0,3527.3,3526.0,2.83607]
[1721416074478,0.958264,3527.2,3526.0,2.83607]
[1721416075024,0.958264,3527.2,3526.1,2.83599]
[1721416075462,0.10814074,3527.2,3526.1,2.83599]
[1721416075634,0.10814074,3527.2,3526.0,2.83606]
[1721416075845,0.10814074,3527.2,3526.1,2.83599]
[1721416076055,0.59430907,3527.1,3526.1,2.83599]
[1721416076289,0.59430907,3527.1,3526.2,2.83583]
[1721416076574,2.3124,3527.8,3526.6,2.83558]
[1721416077148,2.3124,3527.8,3526.7,2.8355]
[1721416078034,3.0,3528.3,3526.1,0.05670708]
[1721416078225,2.4942,3528.5,3527.2,2.8351]
[1721416078431,0.532823,3528.4,3527.3,2.83501]
[1721416078972,0.532823,3528.4,3526.5,7.39]
[1721416078973,0.532823,3528.4,3527.4,2.83489]
[1721416079140,2.83371,3529.0,3527.4,2.83489]
[1721416079463,3.458,3529.1,3527.5,2.83482]
[1721416079464,2.83374,3528.9,3527.5,2.83482]
[1721416079664,6.29159,3529.1,3527.7,2.8347]
[1721416079876,2.83312,3529.7,3528.0,2.83446]
[1721416080080,6.29107,3529.8,3528.3,2.83415]
[1721416080228,6.29107,3529.8,3528.1,2.83435]
[1721416080229,3.711637,3529.7,3528.1,2.83435]
[1721416080430,2.83318,3529.6,3528.0,2.83446]
[1721416080696,0.878527,3529.7,3528.0,2.83441]
[1721416080996,0.878527,3529.7,3528.4,5.66821]
[1721416081201,0.878527,3529.7,3527.9,2.8345]
[1721416081202,2.4942,3530.0,3528.5,2.83403]
[1721416081358,2.4942,3530.0,3527.8,2.83456]
[1721416081560,2.4942,3530.0,3527.5,2.2588]
[1721416081762,2.4942,3530.0,3528.5,2.83405]
[1721416081997,2.4942,3530.0,3528.9,2.83372]
[1721416082215,0.24942,3529.9,3528.9,2.83368]
[1721416082378,0.24942,3529.9,3528.9,2.8337]
[1721416082579,0.24942,3529.9,3529.0,2.83362]
[1721416082879,2.8325,3530.5,3529.0,2.83363]
[1721416083079,5.18805,3530.7,3529.2,2.83349]
[1721416083271,5.18805,3530.7,3529.6,2.83316]
[1721416083272,2.3557,3530.7,3529.6,2.83316]
[1721416083706,2.3557,3530.7,3529.4,2.83332]
[1721416083857,2.3557,3530.7,3529.5,2.83325]
[1721416084067,2.3557,3530.7,3529.6,2.83318]
[1721416084068,0.518783,3530.6,3529.6,2.83318]
[1721416084267,2.3557,3530.7,3529.4,2.83328]
[1721416084805,2.3557,3530.7,3529.5,2.83326]
[1721416085499,2.3557,3530.7,3529.7,2.83308]
[1721416085700,0.23557,3530.6,3529.9,2.83288]
[1721416085999,5.17203,3531.4,3529.4,2.83327]
[1721416086163,5.17203,3531.4,3529.9,2.83292]
[1721416086701,2.83182,3531.3,3529.9,2.83292]
[1721416087003,3.0,3531.2,3529.4,2.83333]
[1721416087306,2.3403,3531.4,3528.8,2.83377]
[1721416087307,2.83206,3531.0,3528.8,2.83377]
[1721416087518,2.83206,3531.0,3527.9,1.47764148]
[1721416087519,3.0,3530.9,3527.9,2.96282953]
[1721416087667,2.83254,3530.4,3528.1,3.0]
[1721416088003,2.83262,3530.3,3528.9,3.68379326]
[1721416088260,0.283262,3530.2,3528.9,3.68379326]
[1721416089340,0.283262,3530.2,3528.9,2.83367]
[1721416089525,3.0,3530.9,3528.8,0.05666484]
[1721416089823,2.3403,3531.4,3529.6,2.83317]
[1721416089824,2.83212,3531.0,3529.6,2.83317]
[1721416090025,6.16582,3531.3,3529.9,2.83291]
[1721416090328,5.17205,3531.4,3530.0,2.83283]
[1721416090631,2.83183,3531.3,3529.9,2.83293]
[1721416090806,0.800378,3531.2,3529.9,2.83293]
[1721416091008,0.800378,3531.2,3529.8,2.833]
[1721416092010,0.800378,3531.2,3530.0,2.83282]
[1721416092511,0.800378,3531.2,3529.8,2.833]
[1721416092723,3.632328,3531.2,3529.8,2.833]
[1721416092897,4.1804368,3531.1,3529.8,2.833]
[1721416093230,4.1804368,3531.1,3529.6,2.83317]
[1721416093439,1.1804368,3531.1,3529.8,2.83295]
[1721416093659,2.83246,3530.5,3529.1,7.39]
[1721416093929,2.83246,3530.5,3528.6,0.59832953]
[1721416093930,2.83292,3530.0,3528.6,7.39]
[1721416094097,2.83292,3530.0,3528.4,2.83407]
[1721416094298,2.8327,3530.2,3528.7,2.8339]
[1721416094500,3.31246727,3530.1,3528.7,2.8339]
[1721416094732,3.31246727,3530.1,3528.5,2.83406]
[1721416094733,2.83299,3529.9,3528.5,2.83406]
[1721416094931,2.83302,3529.8,3528.5,2.83406]
[1721416095433,0.47967727,3530.1,3528.7,2.8339]
[1721416095595,0.47967727,3530.1,3528.3,2.8342]
[1721416095804,2.83334,3529.4,3527.8,7.39]
[1721416096061,2.83334,3529.4,3527.5,3.43312953]
[1721416096062,2.83357,3529.2,3527.5,3.68526066]
[1721416096224,2.83371,3529.0,3527.6,2.83478]
[1721416096421,2.83375,3528.9,3527.5,0.85046066]
[1721416096735,2.83375,3528.9,3527.6,2.83477]
[1721416097264,2.8336,3529.1,3527.8,2.83462]
[1721416097425,0.5950364,3529.0,3527.8,2.83462]
[1721416097613,0.5950364,3529.0,3527.8,2.83457]
[1721416097817,0.5950364,3529.0,3528.1,2.83436]
[1721416098123,0.283334,3529.3,3528.2,0.05667946]
[1721416098312,3.0,3529.9,3528.7,2.83383]
[1721416098513,5.493,3530.0,3528.5,2.83404]
[1721416098726,5.493,3530.0,3527.9,7.39]
[1721416098727,5.493,3530.0,3528.0,2.8344]
[1721416098926,2.83341,3529.4,3527.9,10.22452]
[1721416099163,2.83319,3529.6,3528.0,2.83444]
[1721416099375,0.566622,3529.5,3527.5,2.32872995]
[1721416099661,2.83326,3529.5,3528.1,2.83432]
[1721416100014,5.493,3530.0,3527.7,2.989]
[1721416100246,0.47967727,3530.1,3528.4,2.3584]
[1721416100515,2.4162,3531.0,3529.7,2.83303]
[1721416100724,2.4162,3531.0,3530.0,2.83285]
[1721416100947,2.83159,3531.6,3530.2,2.83268]
[1721416101661,2.2824,3531.7,3530.4,2.83252]
[1721416101817,2.83158,3531.6,3530.2,2.83269]
[1721416102016,0.511398,3531.5,3530.2,2.83269]
[1721416102264,0.511398,3531.5,3530.3,2.83261]
[1721416102851,0.511398,3531.5,3530.1,2.83272]
[1721416103012,0.511398,3531.5,3530.1,2.83271]
[1721416103434,2.83163,3531.6,3530.1,2.83271]
[1721416103666,2.2824,3531.7,3530.3,2.83262]
[1721416103866,2.2824,3531.7,3530.5,2.8324]
[1721416104071,2.2824,3531.7,3530.5,2.83243]
[1721416104278,2.2824,3531.7,3530.7,2.83224]
[1721416104429,0.22824,3531.6,3529.7,15.7435]
[1721416104786,8.61985,3532.4,3530.9,2.83206]
[1721416104935,8.61985,3532.4,3530.7,2.83225]
[1721416104936,2.8311,3532.2,3530.7,2.83225]
[1721416105132,2.8312,3532.1,3530.7,2.83225]
[1721416105367,5.7889,3532.4,3530.5,2.83243]
[1721416105574,2.83134,3531.9,3530.5,2.83243]
[1721416105770,0.283134,3531.8,3530.5,2.83243]
[1721416105967,3.114544,3531.8,3530.5,2.83243]
[1721416106381,2.83151,3531.7,3530.3,2.83259]
[1721416106550,0.283134,3531.8,3530.0,7.39]
[1721416106886,0.283134,3531.8,3529.9,2.83288]
[1721416106887,2.83188,3531.3,3529.9,2.83288]
[1721416107193,0.283188,3531.2,3529.9,2.83288]
[1721416107468,0.283188,3531.2,3530.5,2.83244]
[1721416107649,0.283134,3531.8,3530.5,2.83244]
[1721416107970,3.0,3532.3,3530.5,2.83244]
[1721416108167,2.83119,3532.1,3530.7,2.83224]
[1721416108533,2.83126,3532.0,3529.7,8.82204]
[1721416108781,2.83144,3531.8,3530.3,2.83256]
[1721416108983,2.8315,3531.7,3530.3,2.83256]
[1721416109133,2.8315,3531.7,3530.1,2.83276]
[1721416109134,2.83173,3531.5,3530.1,2.83276]
[1721416109335,2.83174,3531.4,3529.6,2.8331]
[1721416109563,2.83198,3531.1,3529.7,2.83309]
[1721416109767,2.83183,3531.3,3529.5,2.83325]
[1721416110038,2.83183,3531.3,3529.1,7.39]
[1721416110039,2.83243,3530.6,3529.2,2.83349]
[1721416110256,0.56648,3530.5,3529.2,2.83349]
[1721416110434,3.39896,3530.5,3528.5,0.49010793]
[1721416110663,2.8327,3530.2,3528.6,2.83397]
[1721416110836,2.83278,3530.1,3528.7,2.83385]
[1721416111268,2.83279,3530.1,3528.6,2.83397]
[1721416111473,3.116139,3530.0,3528.6,2.83397]
[1721416111664,0.283279,3530.0,3528.9,2.83374]
[1721416111835,3.0,3530.3,3529.0,2.83361]
[1721416112041,2.83255,3530.4,3528.4,2.83407]
[1721416112042,2.83254,3530.4,3528.4,2.83407]
[1721416112245,2.83254,3530.4,3529.0,2.83365]
[1721416112579,0.56648,3530.5,3528.4,3.32429148]
[1721416112580,0.56648,3530.5,3529.2,2.83349]
[1721416112741,0.56648,3530.5,3529.3,0.60665621]
[1721416112941,2.83247,3530.5,3529.1,3.38352]
[1721416113245,2.83243,3530.6,3529.1,0.55]
[1721416113437,2.83251,3530.5,3529.1,0.55]
[1721416113676,2.8323,3530.7,3529.3,2.83337]
[1721416113877,2.83212,3531.0,3529.3,2.83339]
[1721416114089,6.928852,3530.9,3529.6,2.83316]
[1721416114240,6.928852,3530.9,3529.4,0.55]
[1721416114241,1.096712,3530.9,3529.4,0.55]
[1721416114584,2.83254,3530.4,3529.1,0.55]
[1721416114784,3.0,3531.1,3529.1,0.55]
[1721416114785,2.83262,3530.3,3529.1,0.55]
[1721416115075,2.83262,3530.3,3529.0,0.55]
[1721416115484,2.83271,3530.2,3529.0,0.55]
[1721416115782,2.83271,3530.2,3528.9,0.55]
[1721416116076,2.83218,3530.9,3528.3,10.82254953]
[1721416116077,2.8331,3529.7,3528.3,10.82254953]
[1721416116282,2.8331,3529.7,3527.6,2.83475]
[1721416116283,2.8331,3529.7,3528.4,2.83414]
[1721416116577,2.7831,3529.7,3528.2,2.83424]
[1721416116741,2.7831,3529.7,3528.1,2.83436]
[1721416116937,2.83331,3529.5,3528.1,2.83436]
[1721416117381,3.11155,3529.6,3527.9,3.43284953]
[1721416117677,3.11155,3529.6,3528.0,3.81987979]
[1721416117869,3.11155,3529.6,3528.0,2.83446]
[1721416118187,3.11155,3529.6,3527.8,0.59832953]
[1721416118188,0.27831,3529.6,3528.3,2.83421]
[1721416118393,0.27831,3529.6,3529.0,2.83364]
[1721416118598,0.283271,3530.1,3529.0,2.83364]
[1721416118757,2.4223,3530.6,3528.3,0.59832953]
[1721416118758,2.83292,3530.0,3528.3,0.59832953]
[1721416118963,2.83272,3530.2,3528.6,2.83393]
[1721416119163,2.83272,3530.2,3528.8,2.8338]
[1721416119489,2.83272,3530.2,3528.7,3.38385]
[1721416119682,2.83314,3529.7,3528.7,0.55]
[1721416119887,2.83314,3529.7,3528.4,0.55]
[1721416119888,2.83335,3529.4,3528.4,0.55]
[1721416120059,3.116544,3529.6,3528.1,2.83432]
[1721416120261,2.83328,3529.5,3528.2,2.46354248]
[1721416120491,2.83328,3529.5,3528.1,2.83432]
[1721416120670,2.83328,3529.5,3528.2,0.98542162]
[1721416120874,0.5949724,3529.4,3528.1,2.83432]
[1721416121197,0.5949724,3529.4,3528.2,0.98542567]
[1721416121507,0.5949724,3529.4,3528.9,2.83373]
[1721416121796,2.83275,3530.2,3528.3,3.64400273]
[1721416122101,2.83188,3531.3,3528.7,2.83384]
[1721416122102,2.83286,3530.0,3528.7,2.83384]
[1721416122257,2.83226,3530.8,3528.8,0.55]
[1721416122456,2.83255,3530.4,3528.9,2.83367]
[1721416122662,2.83295,3529.9,3528.8,0.55]
[1721416122897,2.83324,3529.6,3528.5,0.59832953]
[1721416123206,2.83324,3529.6,3528.3,2.83421]
[1721416123410,2.83302,3529.8,3528.5,2.83406]
[1721416123699,0.616702,3529.7,3528.2,0.59832953]
[1721416124007,2.83299,3529.9,3528.6,2.83397]
[1721416124211,2.83302,3529.8,3528.4,2.83408]
[1721416124361,0.283302,3529.7,3528.5,3.01349556]
[1721416124566,0.283302,3529.7,3528.5,0.55]
[1721416125186,0.283302,3529.7,3528.2,0.59832953]
[1721416125387,0.283302,3529.7,3528.3,3.01354898]
[1721416125559,2.83326,3529.5,3528.4,2.46354898]
[1721416125776,0.3116562,3529.4,3528.5,0.98543225]
[1721416125978,2.83372,3529.0,3528.0,0.59832953]
[1721416126175,2.83384,3528.8,3528.0,0.59832953]
[1721416126372,2.83408,3528.5,3527.8,0.59832953]
[1721416126602,0.566799,3528.4,3527.5,0.85046066]
[1721416126828,3.400939,3528.4,3527.5,0.85046066]
[1721416126974,2.83431,3528.2,3527.5,0.85046066]
[1721416127182,0.566799,3528.4,3527.5,0.85046066]
[1721416127183,2.83451,3528.0,3527.5,0.85046066]
[1721416127430,6.16851,3528.0,3527.5,0.85046066]
[1721416127715,2.83464,3527.8,3527.5,0.85046066]
[1721416128503,0.60455115,3527.9,3527.5,0.85046066]
[1721416128813,2.83478,3527.6,3527.5,0.85046066]
[1721416130489,2.4937,3528.1,3527.5,0.85046066]
[1721416130716,2.83463,3527.8,3527.5,0.85046066]
[1721416130895,5.32809,3528.1,3527.5,0.85046066]
[1721416131213,3.0,3528.0,3527.5,0.85046066]
[1721416131425,0.832814,3527.9,3527.5,0.85046066]
[1721416131792,3.400939,3528.4,3527.5,0.85046066]
[1721416131793,0.566799,3528.4,3527.5,3.68530066]
[1721416131994,2.83421,3528.4,3527.5,0.85046066]
[1721416132193,2.83438,3528.2,3527.5,0.85046066]
[1721416132396,2.83438,3528.1,3527.5,0.85046066]
[1721416132604,2.3041,3528.7,3527.5,0.85046066]
[1721416132605,2.83431,3528.2,3527.5,0.85046066]
[1721416132826,2.83456,3527.9,3527.5,0.85046066]
[1721416133122,0.566907,3527.8,3527.5,0.85046066]
[1721416133324,2.83451,3528.0,3527.5,0.85046066]
[1721416134016,2.83454,3527.9,3527.5,0.85046066]
[1721416134217,2.83478,3527.7,3527.5,0.85046066]
[1721416134430,2.83438,3528.2,3527.5,0.85046066]
[1721416134431,5.66956,3527.6,3527.5,0.85046066]
[1721416134584,6.236516,3527.6,3527.5,0.85046066]
[1721416135895,14.470496,3527.6,3527.5,0.85046066]
[1721416136818,11.635716,3527.6,3527.5,0.85046066]
[1721416137620,8.800936,3527.6,3527.5,0.85046066]
[1721416138210,11.635716,3527.6,3527.5,0.85046066]
[1721416139687,14.470496,3527.6,3527.5,0.85046066]
[1721416140509,6.401736,3527.6,3527.5,0.85046066]
[1721416140717,9.236516,3527.6,3527.5,0.85046066]
[1721416142026,3.566956,3527.6,3527.5,0.85046066]
[1721416142199,0.566956,3527.6,3527.5,0.85046066]
[1721416142414,2.83442,3528.1,3527.5,0.85046066]
[1721416142724,2.83453,3528.0,3527.5,0.85046066]
[1721416143135,2.83455,3527.9,3527.5,0.85046066]
[1721416143430,2.83453,3528.0,3527.5,0.85046066]
[1721416143431,2.83463,3527.8,3527.5,0.85046066]
[1721416143640,2.83478,3527.6,3527.5,0.85046066]
[1721416143939,0.566941,3527.6,3527.5,0.85046066]
[1721416144139,2.83478,3527.6,3527.5,0.85046066]
[1721416144722,2.83464,3527.8,3527.5,0.85046066]
[1721416145422,2.83471,3527.7,3527.5,0.85046066]
[1721416145634,2.83464,3527.8,3527.5,0.85046066]
[1721416145931,2.8347,3527.7,3527.5,0.85046066]
[1721416146090,3.45,3528.6,3527.5,0.85046066]
[1721416146293,2.4213,3529.4,3527.5,0.85046066]
[1721416146522,2.83353,3529.2,3527.8,2.83461]
[1721416147239,2.83353,3529.2,3527.9,2.83454]
[1721416147406,0.566693,3529.1,3527.9,2.83454]
[1721416147741,0.566693,3529.1,3528.0,2.83445]
[1721416148028,3.45,3530.0,3527.5,0.85046066]
[1721416148029,2.832,3531.1,3528.4,2.83409]
[1721416148234,2.83295,3529.9,3528.6,2.83392]
[1721416148845,2.83295,3529.9,3528.4,2.83409]
[1721416149136,2.83318,3529.6,3528.2,2.83428]
[1721416149294,0.616818,3529.5,3528.3,2.83421]
[1721416149494,0.616818,3529.5,3528.4,2.83408]
[1721416149734,0.616818,3529.5,3528.5,2.834]
[1721416149898,0.616818,3529.5,3528.5,2.83406]
[1721416150421,5.83303,3529.8,3528.5,2.83406]
[1721416150745,5.83303,3529.8,3527.6,10.22473]
[1721416150746,2.83358,3529.1,3527.6,10.22473]
[1721416150899,2.83358,3529.1,3527.7,0.55]
[1721416151093,2.83379,3528.9,3527.4,2.83494]
[1721416151294,2.83358,3529.1,3527.6,0.55]
[1721416151602,0.566703,3529.0,3527.8,2.83461]
[1721416151916,2.8335,3529.2,3527.8,2.83461]
[1721416152295,2.83359,3529.1,3527.8,2.83461]
[1721416152496,2.83351,3529.2,3527.9,2.83447]
[1721416152710,2.83383,3528.8,3527.6,0.55]
[1721416152941,3.0,3529.4,3527.6,3.38477]
[1721416153120,2.83375,3528.9,3527.6,3.38477]
[1721416153301,2.83358,3529.1,3527.6,3.38477]
[1721416153496,3.761476,3529.3,3527.9,2.83454]
[1721416153697,3.0,3529.2,3528.0,2.83445]
[1721416154127,3.0,3529.2,3528.2,2.8343]
[1721416154327,3.0,3529.2,3528.0,2.83445]